bitfinex-derivatives/quotes_SOLF0:USTF0_20251209
["timestamp","ask_amount","ask_price","bid_price","bid_amount"]
[1765258358560,5.71747769,132.78,132.76,8.81000375]
[1765258358762,0.05688994,132.78,132.76,8.86253951]
[1765258361066,3.22688994,132.78,132.76,0.05253576]
[1765258363179,0.05688994,132.78,132.76,6.83073576]
[1765258363676,0.05688994,132.78,132.77,2.03150375]
[1765258364678,3.17,132.81,132.78,6.7774]
[1765258365476,3.22027517,132.81,132.78,6.7774]
[1765258368081,3.22027517,132.81,132.77,2.03150375]
[1765258368774,3.22027517,132.81,132.76,6.83073576]
[1765258368975,3.12,132.79,132.76,6.83073576]
[1765258369279,3.12,132.79,132.76,0.05253576]
[1765258369476,5.72051568,132.78,132.76,0.05253576]
[1765258369676,3.16869765,132.78,132.76,0.05253576]
[1765258370284,5.72052819,132.77,132.76,0.05253576]
[1765258372087,3.16869765,132.78,132.76,0.05253576]
[1765258373183,8.83992141,132.77,132.76,0.05253576]
[1765258373485,8.83992214,132.77,132.76,0.05253576]
[1765258373682,5.71992214,132.77,132.76,0.05253576]
[1765258373993,5.71972861,132.77,132.76,0.05253576]
[1765258375396,3.16869765,132.78,132.76,0.05253576]
[1765258375786,8.83903838,132.77,132.76,0.05253576]
[1765258377794,3.12,132.77,132.76,0.05253576]
[1765258379292,8.83699737,132.77,132.76,0.05253576]
[1765258379893,3.12,132.76,132.73,6.7797]
[1765258380080,3.12,132.74,132.73,6.7797]
[1765258380285,3.12,132.74,132.71,6.7809]
[1765258380486,3.12,132.74,132.69,2.03150375]
[1765258380696,3.12,132.74,132.67,66.07150375]
[1765258380887,3.1711097,132.72,132.7,0.05464575]
[1765258381195,3.1711097,132.72,132.7,6.83614575]
[1765258381884,3.1711097,132.72,132.7,0.05464575]
[1765258382994,0.0511097,132.72,132.71,2.03150375]
[1765258385597,3.1611097,132.72,132.7,0.05464575]
[1765258387904,0.0511097,132.72,132.71,2.03150375]
[1765258390999,3.11,132.75,132.72,6.7805]
[1765258391893,3.15777888,132.75,132.7,6.83604575]
[1765258393103,3.11,132.73,132.7,0.05464575]
[1765258399810,3.11,132.73,132.7,6.83604575]
[1765258400210,3.28,132.74,132.7,6.83604575]
[1765258400608,0.04777888,132.75,132.72,6.7804]
[1765258400813,3.32777888,132.75,132.72,6.7804]
[1765258402112,3.32777888,132.75,132.73,6.7799]
[1765258402312,3.32777888,132.75,132.73,6.82815904]
[1765258407820,0.04777888,132.75,132.73,8.85966279]
[1765258414730,0.04777888,132.75,132.73,6.82815904]
[1765258415631,3.32777888,132.75,132.73,6.82815904]
[1765258415827,3.32777888,132.75,132.73,0.04825904]
[1765258416035,0.04777888,132.75,132.73,0.04825904]
[1765258417632,0.04777888,132.75,132.73,6.82795904]
[1765258418334,3.32777888,132.75,132.73,6.82795904]
[1765258420239,5.71661152,132.74,132.73,6.82795904]
[1765258420448,0.04777888,132.75,132.73,6.82795904]
[1765258420953,3.32777888,132.75,132.73,6.82795904]
[1765258422047,0.04777888,132.75,132.73,6.82795904]
[1765258437556,0.04777888,132.75,132.73,70.86795904]
[1765258450257,3.23777888,132.75,132.73,70.86795904]
[1765258450458,8.92347895,132.74,132.73,0.04825904]
[1765258451463,5.73347895,132.74,132.73,0.04825904]
[1765258451659,9.21e-06,132.74,132.73,0.04825904]
[1765258451855,0.04777888,132.75,132.73,64.08825904]
[1765258452065,0.04777888,132.75,132.74,6.7796]
[1765258452665,3.23777888,132.75,132.73,0.04825904]
[1765258457370,0.04777888,132.75,132.73,0.04825904]
[1765258457672,0.04777888,132.75,132.73,6.82815904]
[1765258471787,10.26642425,132.8,132.73,6.82815904]
[1765258471982,14.45924791,132.79,132.77,6.778]
[1765258472182,5.69709036,132.78,132.77,6.778]
[1765258472382,3.27,132.81,132.78,6.777]
[1765258472582,11.18621633,132.8,132.78,6.777]
[1765258472782,5.6957326,132.79,132.78,6.777]
[1765258472977,5.6957326,132.79,132.78,6.83173968]
[1765258472978,3.26e-05,132.79,132.78,6.83173968]
[1765258473286,0.053275,132.8,132.78,6.83173968]
[1765258476380,0.053275,132.8,132.78,10.00823369]
[1765258476781,0.053275,132.8,132.79,2.03063864]
[1765258477584,3.27,132.85,132.8,105.4091]
[1765258477785,3.27,132.85,132.81,171.47233864]
[1765258478777,3.27,132.85,132.82,0.04789304]
[1765258479084,3.27,132.85,132.83,6.7747]
[1765258479390,64.04,132.87,132.83,8.80533864]
[1765258479391,3.27,132.86,132.83,8.80533864]
[1765258479989,3.27,132.9,132.85,2.03063864]
[1765258480290,3.27,132.9,132.86,0.05345584]
[1765258482886,3.27,132.93,132.91,6.7709]
[1765258483087,3.27,132.93,132.91,2.03063864]
[1765258483287,3.27,132.93,132.91,0.05325436]
[1765258484785,3.27,132.93,132.91,6.82405436]
[1765258486695,3.27,132.96,132.91,8.854693]
[1765258487195,3.27,132.96,132.91,6.82405436]
[1765258487991,3.27,132.96,132.91,0.05325436]
[1765258488583,3.26,132.94,132.91,0.05325436]
[1765258488895,3.26,132.92,132.86,8.80393864]
[1765258489896,3.31325436,132.9,132.88,0.05326252]
[1765258490093,0.05325436,132.9,132.88,114.20500116]
[1765258492198,0.05325436,132.9,132.89,63.98]
[1765258492702,3.26,132.95,132.9,105.3303]
[1765258492898,3.26,132.95,132.92,2.03063864]
[1765258493401,3.26,132.95,132.91,2.03063864]
[1765258493588,3.26,132.95,132.92,0.05696249]
[1765258496710,3.26,132.85,132.75,105.4491]
[1765258496896,3.26,132.83,132.75,105.4491]
[1765258497200,3.26,132.81,132.75,63.98]
[1765258497502,3.26,132.81,132.75,70.7589]
[1765258497696,0.04934766,132.79,132.77,0.05108722]
[1765258498804,0.04934766,132.79,132.78,8.80813864]
[1765258499001,3.26,132.87,132.79,105.4164]
[1765258499202,3.26,132.87,132.82,2.03063864]
[1765258499899,3.26,132.87,132.83,0.05599173]
[1765258501302,3.26,132.87,132.84,2.03063864]
[1765258502803,3.26,132.87,132.83,2.08663037]
[1765258503003,3.26,132.9,132.85,107.39863864]
[1765258503308,3.26,132.9,132.86,0.04801636]
[1765258503607,69.27063864,132.93,132.87,2.03063864]
[1765258503905,3.26,132.92,132.89,0.05327997]
[1765258508008,2.03063864,132.9,132.85,6.7738]
[1765258508210,3.14,132.89,132.82,107.42463864]
[1765258508706,5.17063864,132.88,132.82,107.42463864]
[1765258508908,3.14,132.87,132.83,6.7748]
[1765258509099,3.19239359,132.86,132.84,0.04883619]
[1765258509911,3.19239359,132.86,132.84,8.85357483]
[1765258510102,3.19239359,132.86,132.84,0.04883619]
[1765258511907,0.05239359,132.86,132.84,0.04883619]
[1765258512118,0.05239359,132.86,132.84,112.20413619]
[1765258513312,3.14,132.91,132.86,105.3649]
[1765258514113,3.14,132.91,132.87,0.05491777]
[1765258514502,3.14,132.91,132.87,6.82751777]
[1765258514911,3.14,132.91,132.87,0.05491777]
[1765258516908,5.51139097,132.9,132.87,0.05491777]
[1765258517107,3.14,132.89,132.87,0.05491777]
[1765258526118,3.19236673,132.89,132.83,6.7747]
[1765258527024,3.13,132.87,132.81,6.7757]
[1765258527211,3.13,132.87,132.85,0.05784271]
[1765258527615,9.95860243,132.87,132.85,0.05784271]
[1765258527816,3.13,132.86,132.81,6.7757]
[1765258528019,3.13,132.86,132.8,63.98]
[1765258528323,3.13,132.84,132.79,6.7767]
[1765258528826,3.17984505,132.83,132.8,0.05126449]
[1765258529228,3.17984505,132.83,132.8,6.82756449]
[1765258529823,0.04984505,132.83,132.8,6.82756449]
[1765258530026,3.13,132.86,132.81,105.4014]
[1765258530323,3.13,132.86,132.8,105.4056]
[1765258530531,3.13,132.86,132.79,114.4164]
[1765258530720,5.16069521,132.86,132.79,116.44709521]
[1765258530916,3.13,132.85,132.81,0.04952083]
[1765258531118,3.18742771,132.84,132.81,6.82522083]
[1765258534521,5.21812292,132.84,132.81,6.82522083]
[1765258534725,9.08629002,132.83,132.81,0.04952083]
[1765258535024,3.13,132.82,132.81,0.04952083]
[1765258539242,9.08769877,132.82,132.81,0.04952083]
[1765258540031,3.18742771,132.84,132.81,0.04952083]
[1765258541039,3.18742771,132.84,132.82,6.7755]
[1765258543042,0.05742771,132.84,132.82,6.7755]
[1765258545238,3.18742771,132.84,132.81,0.04952083]
[1765258555346,3.2,132.82,132.81,0.04952083]
[1765258555647,9.15927119,132.82,132.81,0.04952083]
[1765258561956,3.24,132.81,132.74,6.7792]
[1765258562155,3.24,132.78,132.71,105.4814]
[1765258562344,3.24,132.76,132.71,105.4814]
[1765258562955,10.16976286,132.79,132.72,6.82946778]
[1765258562956,3.2979962,132.75,132.72,6.82946778]
[1765258564160,3.2979962,132.75,132.73,6.7799]
[1765258569856,0.0579962,132.75,132.73,6.7799]
[1765258570256,3.24,132.78,132.74,105.4592]
[1765258570457,3.24,132.81,132.74,108.63373161]
[1765258570759,20.30881125,132.82,132.74,108.63373161]
[1765258570760,9.18506451,132.8,132.74,108.63373161]
[1765258570961,9.18506451,132.79,132.74,108.63373161]
[1765258571150,3.24,132.79,132.74,108.63373161]
[1765258571348,0.05037617,132.78,132.76,6.7783]
[1765258573760,9.77778,132.82,132.76,3.17453161]
[1765258574055,6.53778,132.82,132.78,3.17453161]
[1765258574459,6.53778,132.82,132.8,6.7762]
[1765258574859,6.53778,132.82,132.8,6.83155727]
[1765258578764,3.16,132.88,132.81,169.4228]
[1765258578956,3.16,132.86,132.83,0.05647849]
[1765258579874,3.16,132.88,132.83,0.05647849]
[1765258580168,3.16,132.86,132.83,0.05647849]
[1765258580666,67.18,132.89,132.83,105.44177849]
[1765258580867,6.99523125,132.9,132.83,105.44177849]
[1765258580868,3.16,132.9,132.86,6.7732]
[1765258581062,3.16,132.9,132.87,0.05313915]
[1765258581252,8.66109553,132.92,132.87,0.05313915]
[1765258581556,5.81866161,132.91,132.87,0.05313915]
[1765258581756,5.81866161,132.9,132.87,0.05313915]
[1765258581965,3.16,132.92,132.87,0.05313915]
[1765258582169,8.97866026,132.91,132.87,0.05313915]
[1765258582357,3.16,132.91,132.88,0.05337812]
[1765258582558,3.16,132.91,132.88,6.82557812]
[1765258588871,3.16,132.91,132.88,0.05337812]
[1765258591574,3.16,132.91,132.88,6.82557812]
[1765258592673,3.16,132.91,132.88,0.05337812]
[1765258593271,3.16,132.91,132.88,6.82567812]
[1765258594865,3.16,132.95,132.92,6.7699]
[1765258595068,3.16,132.95,132.92,6.82353907]
[1765258595264,3.16,132.97,132.92,105.36593907]
[1765258595471,3.16,132.97,132.94,6.7691]
[1765258599673,63.98,133.0,132.95,6.7685]
[1765258599874,3.16,132.99,132.96,0.0497585]
[1765258602684,8.9150276,132.99,132.96,0.0497585]
[1765258602885,3.16,132.98,132.96,0.0497585]
[1765258608986,3.16,132.98,132.91,6.7707]
[1765258609188,3.26,132.96,132.91,6.7707]
[1765258610093,3.26,132.94,132.92,0.04846282]
[1765258610299,3.26,132.94,132.92,0.05622288]
[1765258618394,9.05216689,132.93,132.92,0.05622288]
[1765258619495,9.05216689,132.93,132.78,9.0]
[1765258619700,9.05216689,132.93,132.83,107.41611439]
[1765258619701,3.26,132.88,132.83,107.41611439]
[1765258619899,9.05216689,132.87,132.83,107.41611439]
[1765258620093,3.26,132.87,132.83,107.41611439]
[1765258620294,5.79984878,132.86,132.83,107.41611439]
[1765258620490,3.26,132.87,132.85,6.7736]
[1765258620696,0.05143572,132.86,132.85,8.80151439]
[1765258620994,3.26,132.9,132.85,8.80151439]
[1765258620995,0.0544803,132.87,132.85,8.80151439]
[1765258623302,0.0544803,132.87,132.85,6.7736]
[1765258623494,0.0544803,132.87,132.85,8.80151439]
[1765258625805,3.36,132.91,132.87,6.7729]
[1765258626004,5.80852797,132.9,132.87,8.80081439]
[1765258626208,3.36,132.91,132.87,8.80081439]
[1765258626507,5.8086316,132.9,132.87,8.80081439]
[1765258626801,0.04852722,132.9,132.87,8.85095665]
[1765258627003,0.04852722,132.9,132.89,2.02791439]
[1765258627408,3.36,132.94,132.89,2.02791439]
[1765258627706,5.80056244,132.93,132.89,2.02791439]
[1765258627896,5.80056244,132.92,132.9,6.7712]
[1765258628098,3.36,132.95,132.91,107.35211439]
[1765258628298,5.80016316,132.94,132.92,0.05182941]
[1765258628608,3.36,132.95,132.93,6.7697]
[1765258628808,5.80019314,132.94,132.93,6.7697]
[1765258630311,3.36,132.95,132.93,6.7697]
[1765258631803,3.36,132.95,132.92,0.05182941]
[1765258632416,3.36,132.93,132.92,0.05182941]
[1765258632805,9.17718857,132.93,132.92,0.05182941]
[1765258634204,3.36,132.85,132.83,9.0]
[1765258634504,3.36,132.85,132.8,2.02791439]
[1765258634708,3.36,132.85,132.8,8.80411439]
[1765258635207,0.05009097,132.84,132.81,0.05373933]
[1765258636007,0.05009097,132.84,132.81,6.82943933]
[1765258639409,0.05009097,132.84,132.82,2.02791439]
[1765258640405,3.24009097,132.84,132.82,2.02791439]
[1765258640602,3.24009097,132.84,132.81,0.05373933]
[1765258642298,0.05009097,132.84,132.82,2.02791439]
[1765258643607,3.19,132.87,132.82,2.02791439]
[1765258643800,3.19,132.87,132.82,107.42081439]
[1765258644110,3.19,132.87,132.82,2.02791439]
[1765258645298,3.19,132.87,132.83,6.7746]
[1765258645610,3.19,132.87,132.84,0.0523265]
[1765258661831,3.19,132.87,132.83,6.7746]
[1765258661832,3.19,132.87,132.76,9.0]
[1765258662132,3.19,132.79,132.75,106.4818]
[1765258662332,3.19,132.79,132.76,1.03]
[1765258662926,3.24017799,132.79,132.76,1.08511748]
[1765258663128,3.24017799,132.79,132.77,6.7778]
[1765258663631,5.80887485,132.81,132.8,1.03]
[1765258663827,3.19,132.84,132.81,1.03]
[1765258664221,3.19,132.86,132.82,106.4263]
[1765258664436,3.19,132.86,132.83,1.03]
[1765258664737,3.19,132.86,132.83,1.0812852]
[1765258665235,3.19,132.86,132.83,6.8259852]
[1765258667141,3.19,132.86,132.83,7.8559852]
[1765258669945,3.19,132.86,132.83,0.0512852]
[1765258671132,15.54295411,132.89,132.83,0.0512852]
[1765258671133,3.29,132.84,132.83,0.0512852]
[1765258671528,12.37144231,132.89,132.85,1.03]
[1765258671732,3.29,132.89,132.86,1.08289483]
[1765258672536,3.29,132.89,132.87,6.7726]
[1765258672731,3.29,132.89,132.86,1.08289483]
[1765258674639,3.29,132.89,132.86,7.85609483]
[1765258677333,3.29,132.87,132.86,6.82609483]
[1765258677535,10.28243201,132.93,132.9,1.03]
[1765258677735,10.28243201,132.93,132.9,1.08553684]
[1765258677736,3.29,132.93,132.9,1.08553684]
[1765258678036,3.29,132.93,132.9,7.85663684]
[1765258679842,3.29,132.93,132.9,0.05553684]
[1765258680633,10.28243201,132.96,132.92,1.03]
[1765258680835,3.29,132.96,132.93,0.05431041]
[1765258688940,3.29,132.96,132.9,3.17289276]
[1765258689141,3.32,132.95,132.9,3.17289276]
[1765258689345,3.32,132.93,132.9,3.17289276]
[1765258689946,3.37010599,132.93,132.9,3.22771659]
[1765258690151,3.37010599,132.93,132.9,0.05482383]
[1765258692252,0.05010599,132.93,132.91,1.09]
[1765258692663,0.05010599,132.93,132.92,4.26289276]
[1765258695257,0.05010599,132.93,132.92,1.09]
[1765258701260,3.43010599,132.93,132.91,6.7705]
[1765258701663,3.43010599,132.93,132.91,7.8405]
[1765258703466,0.05010599,132.93,132.92,1.07]
[1765258720780,0.05010599,132.93,132.92,3.09715445]
[1765258730092,0.05010599,132.93,132.92,1.07]
[1765258735600,0.05010599,132.93,132.92,3.09715445]
[1765258737698,5.38299908,132.97,132.95,1.03]
[1765258737896,5.81728701,132.96,132.95,1.03]
[1765258738793,9.01728701,132.96,132.95,6.7689]
[1765258739191,3.2,132.95,132.94,0.05805194]
[1765258739395,9.01728701,132.95,132.94,0.05805194]
[1765258742907,3.2,132.94,132.91,6.7705]
[1765258743110,3.2,132.92,132.91,6.7705]
[1765258743410,9.01728701,132.92,132.91,6.7705]
[1765258744115,5.81728701,132.92,132.91,7.8005]
[1765258746913,9.01728701,132.92,132.91,6.7705]
[1765258750502,5.81728701,132.92,132.91,7.8005]
[1765258750704,8.701e-05,132.92,132.91,7.8005]
[1765258751013,0.0519307,132.93,132.92,1.03]
[1765258752917,3.2519307,132.93,132.91,7.8005]
[1765258753106,3.2519307,132.93,132.91,6.7705]
[1765258753313,0.0519307,132.93,132.92,1.03]
[1765258753811,0.0519307,132.93,132.91,7.8005]
[1765258757422,3.2519307,132.93,132.91,7.8005]
[1765258761125,3.2519307,132.93,132.91,6.7705]
[1765258762725,5.76909364,132.92,132.91,6.7705]
[1765258763917,9.15909364,132.92,132.91,6.7705]
[1765258766640,5.76909364,132.92,132.91,7.8105]
[1765258767914,0.0519307,132.93,132.92,1.04]
[1765258774533,0.0519307,132.93,132.92,3.06715445]
[1765258775330,0.0519307,132.93,132.92,1.04]
[1765258775526,0.0519307,132.93,132.92,3.06715445]
[1765258778132,0.0519307,132.93,132.92,1.04]
[1765258778637,3.4419307,132.93,132.92,1.04]
[1765258779137,3.4419307,132.93,132.9,0.05369152]
[1765258780040,3.39,132.91,132.9,0.05369152]
[1765258780342,9.13550789,132.91,132.9,0.05369152]
[1765258783938,9.13550789,132.91,132.86,3.16966056]
[1765258783939,3.39,132.9,132.86,1.04]
[1765258784238,3.39,132.88,132.86,1.04]
[1765258784836,3.43756381,132.88,132.86,1.08771413]
[1765258785247,3.43756381,132.88,132.86,0.04771413]
[1765258785539,9.14595445,132.87,132.86,0.04771413]
[1765258788447,3.39,132.87,132.86,0.04771413]
[1765258789143,9.13951983,132.87,132.86,0.04771413]
[1765258796257,3.39,132.87,132.86,0.04771413]
[1765258807257,0.04756381,132.88,132.86,1.08771413]
[1765258807762,3.39756381,132.88,132.86,1.08771413]
[1765258808554,3.39756381,132.88,132.86,7.86101413]
[1765258810663,0.04756381,132.88,132.87,1.04]
[1765258817663,3.35,132.95,132.9,0.99]
[1765258817867,5.72883716,132.94,132.9,0.99]
[1765258818067,5.72883716,132.93,132.9,0.99]
[1765258818268,3.35,132.95,132.9,0.99]
[1765258818567,3.25,132.93,132.9,0.99]
[1765258818872,3.25,132.93,132.91,1.03847361]
[1765258820266,3.25,132.93,132.91,7.80917361]
[1765258822266,3.29786614,132.94,132.92,7.7602]
[1765258826678,3.29786614,132.94,132.93,0.99]
[1765258827069,0.04786614,132.94,132.93,0.99]
[1765258828477,3.29786614,132.94,132.92,7.7602]
[1765258828779,3.29786614,132.94,132.92,6.7702]
[1765258830665,3.29786614,132.94,132.91,0.04847361]
[1765258831273,3.25,132.92,132.91,0.04847361]
[1765258834683,8.97436674,132.92,132.91,0.04847361]
[1765258838283,3.25,132.91,132.89,6.7718]
[1765258839181,3.30104561,132.91,132.89,6.81940411]
[1765258847484,3.30104561,132.91,132.89,0.04760411]
[1765258847679,8.9813862,132.9,132.89,0.04760411]
[1765258862197,3.16,132.89,132.83,9.84345006]
[1765258862398,3.16,132.87,132.84,1.04]
[1765258863192,3.21463619,132.87,132.84,1.0975639]
[1765258865297,3.21463619,132.87,132.84,7.8718639]
[1765258865999,3.21463619,132.87,132.85,1.04]
[1765258867201,0.05463619,132.87,132.86,1.04]
[1765258873107,3.16,132.91,132.88,1.04]
[1765258873308,5.73802102,132.9,132.89,1.04]
[1765258874104,0.05627757,132.91,132.89,1.04]
[1765258875107,3.21627757,132.91,132.89,7.8116]
[1765258879614,3.29,132.89,132.88,0.05379681]
[1765258879797,8.95206383,132.89,132.88,0.05379681]
[1765258880612,14.31592731,132.89,132.88,0.05379681]
[1765258882715,14.3159544,132.89,132.88,0.05379681]
[1765258883900,3.29,132.88,132.85,6.7735]
[1765258884103,8.95206383,132.87,132.85,6.7735]
[1765258884406,3.29,132.87,132.85,6.7735]
[1765258884806,3.34629693,132.87,132.85,7.86402897]
[1765258889011,3.34629693,132.87,132.85,6.82402897]
[1765258891714,3.34629693,132.87,132.85,7.86402897]
[1765258897104,3.34629693,132.87,132.85,6.82402897]
[1765258897508,5.66175509,132.86,132.85,0.05052897]
[1765258897715,8.95175509,132.86,132.85,0.05052897]
[1765258910726,8.95175509,132.86,132.85,0.00052897]
[1765258912525,3.28,132.85,132.81,7.8658]
[1765258912828,3.28,132.83,132.81,7.8658]
[1765258913428,3.33673908,132.83,132.81,7.92045207]
[1765258915026,3.33673908,132.83,132.81,6.83045207]
[1765258916425,0.05673908,132.83,132.82,1.09]
[1765258921933,3.28673908,132.83,132.82,1.08]
[1765258922431,0.05673908,132.83,132.82,1.08]
[1765258923027,0.05673908,132.83,132.82,4.25277294]
[1765258923736,0.05673908,132.83,132.82,1.08]
[1765258926252,0.05673908,132.83,132.81,6.83045207]
[1765258926253,3.28673908,132.83,132.81,1.13465207]
[1765258939165,0.05673908,132.83,132.81,1.13465207]
[1765258939557,0.05673908,132.83,132.82,1.09]
[1765258942364,5.7130829,132.83,132.82,1.09]
[1765258942563,5.71322167,132.83,132.82,1.09]
[1765258945169,0.05673908,132.83,132.82,1.09]
[1765258950158,0.05673908,132.83,132.82,4.26277294]
[1765258953471,3.3,132.87,132.84,1.09]
[1765258953672,5.65671124,132.86,132.84,1.09]
[1765258953872,3.3,132.87,132.84,1.09]
[1765258954074,8.9567098,132.86,132.84,1.09]
[1765258954371,3.3,132.88,132.86,1.09]
[1765258954570,5.65617152,132.87,132.86,1.09]
[1765258954971,5.65617152,132.87,132.86,4.26277294]
[1765258955271,0.0509224,132.88,132.87,7.8629]
[1765258964886,77.79327067,132.95,132.9,1.09]
[1765258964887,3.3,132.93,132.9,1.09]
[1765258965082,8.88923072,132.92,132.9,1.09]
[1765258965387,3.3,132.92,132.9,1.09]
[1765258965973,3.3534092,132.92,132.9,1.13786425]
[1765258966379,3.3534092,132.92,132.9,0.04786425]
[1765258974701,0.0534092,132.92,132.9,1.12786425]
[1765258975103,3.3534092,132.92,132.9,1.12786425]
[1765258975697,3.3534092,132.92,132.9,0.04786425]
[1765258976295,3.3534092,132.92,132.91,1.08]
[1765258976296,0.0534092,132.92,132.91,1.08]
[1765258980096,3.3,132.97,132.93,1.08]
[1765258980297,3.3,132.97,132.94,1.08]
[1765258981104,3.3,132.97,132.94,1.13558068]
[1765258981105,3.35411805,132.97,132.94,1.13558068]
[1765258981709,3.35411805,132.97,132.94,0.05558068]
[1765258982010,3.3,132.96,132.94,0.05558068]
[1765258982411,3.3,132.96,132.91,6.7707]
[1765258982608,3.3,132.94,132.91,6.7707]
[1765258983311,3.3,132.94,132.91,7.9107]
[1765258983513,3.35253577,132.94,132.91,7.95991431]
[1765258987217,0.05253577,132.94,132.93,1.14]
[1765258987407,0.05253577,132.94,132.93,3.16834249]
[1765258993707,3.12253577,132.94,132.92,6.77]
[1765258994814,3.12253577,132.94,132.92,7.91]
[1765258995623,0.05253577,132.94,132.93,1.14]
[1765258996120,3.12253577,132.94,132.92,6.77]
[1765259001613,3.12253577,132.94,132.91,0.04921431]
[1765259001822,3.28,132.92,132.91,0.04921431]
[1765259002017,8.86362545,132.92,132.91,0.04921431]
[1765259008431,8.86362545,132.92,132.91,1.18921431]
[1765259008831,8.86362545,132.92,132.91,0.04921431]
[1765259018238,14.15687712,132.92,132.91,0.04921431]
[1765259019135,8.86362545,132.92,132.91,0.04921431]
[1765259019338,14.15645385,132.92,132.91,0.04921431]
[1765259019529,8.86362545,132.92,132.91,0.04921431]
[1765259026441,14.15512161,132.92,132.91,0.04921431]
[1765259031643,8.86362545,132.92,132.91,0.04921431]
[1765259036151,14.1576248,132.92,132.91,0.04921431]
[1765259040650,14.16285087,132.92,132.91,0.04921431]
[1765259044156,21.18712154,132.92,132.91,0.04921431]
[1765259049660,3.17,132.91,132.86,1.14]
[1765259049868,10.21354405,132.89,132.85,257.13783341]
[1765259050169,3.17,132.87,132.85,257.13783341]
[1765259050468,5.58362545,132.86,132.85,257.13783341]
[1765259052070,5.64057009,132.86,132.85,257.13783341]
[1765259053268,3.22411148,132.87,132.85,257.13783341]
[1765259054064,3.22411148,132.87,132.86,1.14]
[1765259054370,8.86749276,132.87,132.86,1.14]
[1765259063777,8.86749276,132.87,132.85,263.91173341]
[1765259063975,3.22411148,132.87,132.85,263.91173341]
[1765259064875,3.22411148,132.87,132.85,262.77173341]
[1765259066176,3.22411148,132.87,132.85,255.99783341]
[1765259068282,3.22411148,132.87,132.84,0.05473304]
[1765259068482,3.34,132.85,132.84,0.05473304]
[1765259072988,8.97673553,132.85,132.84,0.05473304]
[1765259073482,3.34,132.85,132.84,0.05473304]
[1765259078186,8.97458247,132.85,132.84,0.05473304]
[1765259079690,3.34,132.85,132.84,0.05473304]
[1765259079881,8.97406781,132.85,132.84,0.05473304]
[1765259082494,5.63406781,132.85,132.84,1.19473304]
[1765259082888,3.39411148,132.87,132.84,1.19473304]
[1765259083089,8.98492095,132.86,132.84,1.19473304]
[1765259083293,3.34,132.86,132.84,1.19473304]
[1765259088096,3.34,132.86,132.84,0.05473304]
[1765259088297,8.98760464,132.85,132.84,0.05473304]
[1765259088899,3.24,132.84,132.8,1.14]
[1765259089900,3.24,132.82,132.81,0.05602595]
[1765259090201,3.24,132.82,132.81,1.19602595]
[1765259090393,3.28859169,132.83,132.81,1.19602595]
[1765259101505,3.28859169,132.83,132.81,0.05602595]
[1765259102206,3.28859169,132.83,132.81,1.19602595]
[1765259103108,3.28859169,132.83,132.81,7.97182595]
[1765259103607,3.28859169,132.83,132.82,1.14]
[1765259103608,0.04859169,132.83,132.82,1.14]
[1765259107207,9.07352792,132.88,132.82,1.14]
[1765259107208,12.39352792,132.88,132.82,1.14]
[1765259107415,14.34199554,132.87,132.85,9.94378387]
[1765259107604,8.97272841,132.86,132.85,9.94378387]
[1765259108704,3.32,132.86,132.85,9.94378387]
[1765259109209,8.96635895,132.86,132.85,9.94378387]
[1765259109409,3.32,132.86,132.85,9.94378387]
[1765259110408,8.96625359,132.86,132.85,9.94378387]
[1765259110910,8.96625359,132.86,132.85,7.9138]
[1765259111809,8.96625359,132.86,132.85,6.7738]
[1765259112517,3.32,132.86,132.85,6.7738]
[1765259115210,3.32,132.86,132.85,7.9138]
[1765259117614,3.3709184,132.87,132.85,7.9138]
[1765259118713,0.0509184,132.87,132.86,1.14]
[1765259118921,5.69440721,132.87,132.86,1.14]
[1765259119618,3.18,132.9,132.89,6.7719]
[1765259119814,8.53694296,132.9,132.89,6.7719]
[1765259121413,3.18,132.9,132.89,6.7719]
[1765259122012,8.51592505,132.9,132.89,6.7719]
[1765259123617,3.18,132.89,132.88,0.051807]
[1765259123834,8.51533682,132.89,132.88,0.051807]
[1765259124725,3.18,132.89,132.88,0.051807]